[Event "Late-Titled-Tuesday-Blitz-March-26-2024"]
[Site "Chess.com"]
[Date "2024.03.26"]
[Round "1"]
[White "Doublekk14"]
[Black "Kiborg95"]
[Result "0-1"]
[WhiteElo "2421"]
[BlackElo "2782"]
[TimeControl "180+1"]
[EndTime "14:08:21 PDT"]
[Termination "Kiborg95 won on time"]

1. c4 {[%clk 0:03:00.9]} 1... d6 {[%clk 0:02:58.4]} 2. Nc3 {[%clk 0:02:58.1]}
2... e5 {[%clk 0:02:58.1]} 3. e3 {[%clk 0:02:58]} 3... f5 {[%clk 0:02:56.4]} 4.
d4 {[%clk 0:02:57.6]} 4... Be7 {[%clk 0:02:56.1]} 5. dxe5 {[%clk 0:02:46.4]}
5... dxe5 {[%clk 0:02:57]} 6. Qxd8+ {[%clk 0:02:46.7]} 6... Bxd8 {[%clk
0:02:55.7]} 7. e4 {[%clk 0:02:46.1]} 7... Nf6 {[%clk 0:02:48.8]} 8. exf5 {[%clk
0:02:32.7]} 8... Bxf5 {[%clk 0:02:49.7]} 9. Nge2 {[%clk 0:02:32.6]} 9... Nc6
{[%clk 0:02:46.6]} 10. Ng3 {[%clk 0:02:32.3]} 10... Bg6 {[%clk 0:02:46.3]} 11.
Bd2 {[%clk 0:02:08]} 11... Nd4 {[%clk 0:02:25.1]} 12. O-O-O {[%clk 0:02:03.2]}
12... O-O {[%clk 0:02:20.2]} 13. Re1 {[%clk 0:01:58.5]} 13... c6 {[%clk
0:02:01.1]} 14. f3 {[%clk 0:01:55.9]} 14... Bc7 {[%clk 0:01:52.9]} 15. Nge4
{[%clk 0:01:41.4]} 15... Rfd8 {[%clk 0:01:49.8]} 16. Bg5 {[%clk 0:01:35.6]}
16... Rf8 {[%clk 0:01:21.3]} 17. c5 {[%clk 0:01:35.4]} 17... Nd5 {[%clk
0:01:12.8]} 18. Bc4 {[%clk 0:01:27.3]} 18... Bf7 {[%clk 0:01:12.9]} 19. Bd3
{[%clk 0:01:27.4]} 19... b5 {[%clk 0:01:02.8]} 20. Nxd5 {[%clk 0:01:17.8]} 20...
cxd5 {[%clk 0:00:50.3]} 21. Nd6 {[%clk 0:01:17.6]} 21... Nc6 {[%clk 0:00:18.4]}
22. Bxb5 {[%clk 0:00:54.1]} 22... Bxd6 {[%clk 0:00:18.2]} 23. cxd6 {[%clk
0:00:54.1]} 23... Nd4 {[%clk 0:00:18.8]} 24. Ba4 {[%clk 0:00:42]} 24... h6
{[%clk 0:00:19]} 25. Be7 {[%clk 0:00:41.9]} 25... Rfc8+ {[%clk 0:00:18.8]} 26.
Kd2 {[%clk 0:00:27.1]} 26... Rc4 {[%clk 0:00:18.7]} 27. Bb3 {[%clk 0:00:13.2]}
27... Nxb3+ {[%clk 0:00:17.9]} 28. axb3 {[%clk 0:00:13.4]} 28... Rd4+ {[%clk
0:00:17.8]} 29. Ke2 {[%clk 0:00:12.5]} 29... Be6 {[%clk 0:00:13.9]} 30. Rd1
{[%clk 0:00:11.2]} 30... Rb4 {[%clk 0:00:14.1]} 31. Rd3 {[%clk 0:00:10.4]} 31...
Rb5 {[%clk 0:00:12.2]} 32. Rc1 {[%clk 0:00:09.7]} 32... Kf7 {[%clk 0:00:12.3]}
33. Rc7 {[%clk 0:00:09.1]} 33... Ke8 {[%clk 0:00:12.6]} 34. Bh4 {[%clk
0:00:06.7]} 34... Bd7 {[%clk 0:00:08.4]} 35. Bg3 {[%clk 0:00:04.5]} 35... d4
{[%clk 0:00:08.5]} 36. f4 {[%clk 0:00:03.4]} 36... exf4 {[%clk 0:00:08.4]} 37.
Bxf4 {[%clk 0:00:03.6]} 37... Rd5 {[%clk 0:00:08.7]} 38. Kf3 {[%clk 0:00:03.2]}
38... g5 {[%clk 0:00:06.9]} 39. Bg3 {[%clk 0:00:03]} 39... Rd8 {[%clk
0:00:06.9]} 40. Rd1 {[%clk 0:00:03]} 40... h5 {[%clk 0:00:05.5]} 41. Re1+ {[%clk
0:00:03.5]} 41... Kf8 {[%clk 0:00:06]} 42. Kf2 {[%clk 0:00:04.4]} 42... h4
{[%clk 0:00:05]} 43. Re7 {[%clk 0:00:03.5]} 43... hxg3+ {[%clk 0:00:04.7]} 44.
Kxg3 {[%clk 0:00:03.9]} 44... Rxd6 {[%clk 0:00:05.4]} 45. Rh7 {[%clk 0:00:03.5]}
45... Kg8 {[%clk 0:00:05.4]} 46. Rh5 {[%clk 0:00:02.9]} 46... g4 {[%clk
0:00:04.6]} 47. Rg5+ {[%clk 0:00:03.3]} 47... Kf8 {[%clk 0:00:05.3]} 48. Rcc5
{[%clk 0:00:03]} 48... d3 {[%clk 0:00:05.6]} 49. Rc1 {[%clk 0:00:03.2]} 49... d2
{[%clk 0:00:05]} 50. Rf1+ {[%clk 0:00:03.7]} 50... Ke7 {[%clk 0:00:03.2]} 51.
Re5+ {[%clk 0:00:04.2]} 51... Be6 {[%clk 0:00:03.3]} 52. Re2 {[%clk 0:00:03.5]}
52... d1=Q {[%clk 0:00:02.9]} 53. Rxd1 {[%clk 0:00:03.6]} 53... Rxd1 {[%clk
0:00:03.8]} 54. Rxe6+ {[%clk 0:00:04.1]} 54... Kxe6 {[%clk 0:00:03.9]} 55. Kxg4
{[%clk 0:00:05]} 55... R1d3 {[%clk 0:00:04.7]} 0-1

[Event "Late-Titled-Tuesday-Blitz-March-26-2024"]
[Site "Chess.com"]
[Date "2024.03.26"]
[Round "1"]
[White "ATM622"]
[Black "Oleksandr_Bortnyk"]
[Result "0-1"]
[WhiteElo "2523"]
[BlackElo "3047"]
[TimeControl "180+1"]
[EndTime "14:08:22 PDT"]
[Termination "Oleksandr_Bortnyk won by resignation"]

1. d4 {[%clk 0:03:00.9]} 1... Nf6 {[%clk 0:02:59.6]} 2. c4 {[%clk 0:03:00.6]}
2... b6 {[%clk 0:03:00]} 3. Nf3 {[%clk 0:02:58.4]} 3... Bb7 {[%clk 0:03:00.6]}
4. g3 {[%clk 0:02:58]} 4... g6 {[%clk 0:02:59]} 5. Bg2 {[%clk 0:02:58.2]} 5...
Bg7 {[%clk 0:02:59.7]} 6. O-O {[%clk 0:02:57.9]} 6... O-O {[%clk 0:03:00.1]} 7.
Nc3 {[%clk 0:02:57]} 7... Ne4 {[%clk 0:03:00.3]} 8. Qc2 {[%clk 0:02:47.1]} 8...
Nxc3 {[%clk 0:02:59.7]} 9. Qxc3 {[%clk 0:02:46.3]} 9... c5 {[%clk 0:02:58.6]}
10. e3 {[%clk 0:02:39.8]} 10... Nc6 {[%clk 0:02:48.9]} 11. Rd1 {[%clk 0:02:39]}
11... Rc8 {[%clk 0:02:44.4]} 12. b3 {[%clk 0:02:30.5]} 12... cxd4 {[%clk
0:02:37.1]} 13. exd4 {[%clk 0:02:25.9]} 13... d5 {[%clk 0:02:37.4]} 14. Ne5
{[%clk 0:02:17.5]} 14... dxc4 {[%clk 0:02:21.1]} 15. Nxc6 {[%clk 0:02:11.6]}
15... Bxc6 {[%clk 0:02:22]} 16. Bxc6 {[%clk 0:02:11.2]} 16... Rxc6 {[%clk
0:02:21.7]} 17. bxc4 {[%clk 0:02:10]} 17... Qc8 {[%clk 0:02:21.7]} 18. Qa3
{[%clk 0:01:51.5]} 18... Rxc4 {[%clk 0:02:20.9]} 19. Qxe7 {[%clk 0:01:51.1]}
19... Re8 {[%clk 0:01:56.8]} 20. Qh4 {[%clk 0:01:29.6]} 20... Bxd4 {[%clk
0:01:36.4]} 21. Rxd4 {[%clk 0:01:29.3]} 21... Rxc1+ {[%clk 0:01:36.5]} 22. Rd1
{[%clk 0:01:23.5]} 22... Rxa1 {[%clk 0:01:29.9]} 23. Rxa1 {[%clk 0:01:24.4]}
23... Qc3 {[%clk 0:01:20.7]} 24. Rd1 {[%clk 0:01:20.8]} 24... h5 {[%clk
0:01:18.1]} 25. Rd8 {[%clk 0:01:10.4]} 25... Rxd8 {[%clk 0:01:11.4]} 26. Qxd8+
{[%clk 0:01:10]} 26... Kg7 {[%clk 0:01:12.3]} 27. Kg2 {[%clk 0:00:57.1]} 27...
Qc6+ {[%clk 0:00:35.9]} 28. Kg1 {[%clk 0:00:55.5]} 28... Qc1+ {[%clk 0:00:36.4]}
29. Kg2 {[%clk 0:00:55.2]} 29... Qc4 {[%clk 0:00:36.6]} 30. Qd2 {[%clk
0:00:44.9]} 30... b5 {[%clk 0:00:35.5]} 31. Qb2+ {[%clk 0:00:41.6]} 31... Kg8
{[%clk 0:00:35.5]} 32. Qd2 {[%clk 0:00:28.3]} 32... b4 {[%clk 0:00:28.4]} 33.
Qd8+ {[%clk 0:00:24]} 33... Kg7 {[%clk 0:00:25]} 34. Qa5 {[%clk 0:00:22.6]}
34... a6 {[%clk 0:00:24.8]} 35. Qe5+ {[%clk 0:00:22.3]} 35... Kg8 {[%clk
0:00:24.5]} 36. Qe8+ {[%clk 0:00:18]} 36... Kh7 {[%clk 0:00:24.2]} 37. Qa4
{[%clk 0:00:16.7]} 37... Kg7 {[%clk 0:00:18.3]} 38. Qa5 {[%clk 0:00:15.5]} 38...
Qe4+ {[%clk 0:00:10.2]} 39. Kg1 {[%clk 0:00:15.4]} 39... Qe1+ {[%clk 0:00:06.7]}
40. Kg2 {[%clk 0:00:15.5]} 40... Qe4+ {[%clk 0:00:07.6]} 41. Kg1 {[%clk
0:00:15.6]} 41... Qc4 {[%clk 0:00:08.5]} 42. Kg2 {[%clk 0:00:14.1]} 42... Kh7
{[%clk 0:00:09.2]} 43. Kg1 {[%clk 0:00:13.7]} 43... Qb5 {[%clk 0:00:06.6]} 44.
Qc7 {[%clk 0:00:12.5]} 44... Qd5 {[%clk 0:00:06.1]} 45. Qc2 {[%clk 0:00:03.4]}
45... a5 {[%clk 0:00:05.8]} 46. Qa4 {[%clk 0:00:03.3]} 46... Kg7 {[%clk
0:00:04.1]} 47. h4 {[%clk 0:00:02.6]} 47... Qc5 {[%clk 0:00:03.1]} 48. Qb3
{[%clk 0:00:02.6]} 48... Qe5 {[%clk 0:00:02.1]} 49. Qc2 {[%clk 0:00:02.3]} 49...
Qb5 {[%clk 0:00:02.3]} 50. Qb3 {[%clk 0:00:02.1]} 50... a4 {[%clk 0:00:02.6]}
51. Qb2+ {[%clk 0:00:02.6]} 51... Kg8 {[%clk 0:00:03.1]} 52. Qd2 {[%clk
0:00:02.7]} 52... b3 {[%clk 0:00:03.5]} 53. axb3 {[%clk 0:00:02.7]} 53... axb3
{[%clk 0:00:03.5]} 54. Qd8+ {[%clk 0:00:02.7]} 54... Kg7 {[%clk 0:00:03.3]} 55.
Qd4+ {[%clk 0:00:02.7]} 55... Kg8 {[%clk 0:00:04]} 56. Qd8+ {[%clk 0:00:02.5]}
56... Kh7 {[%clk 0:00:04.4]} 57. Qd1 {[%clk 0:00:02.4]} 57... b2 {[%clk
0:00:04.3]} 58. Qb1 {[%clk 0:00:02.5]} 58... Qb3 {[%clk 0:00:04.6]} 59. Kh2
{[%clk 0:00:02.4]} 59... Qc3 {[%clk 0:00:03.6]} 60. Qa2 {[%clk 0:00:02]} 60...
Kg7 {[%clk 0:00:03.6]} 61. Qb1 {[%clk 0:00:01.4]} 61... Qc1 {[%clk 0:00:03.6]}
62. Qa2 {[%clk 0:00:01.7]} 62... b1=Q {[%clk 0:00:03.8]} 0-1

[Event "Late-Titled-Tuesday-Blitz-March-26-2024"]
[Site "Chess.com"]
[Date "2024.03.26"]
[Round "1"]
[White "LikeWater"]
[Black "Nick12772"]
[Result "1/2-1/2"]
[WhiteElo "2710"]
[BlackElo "2406"]
[TimeControl "180+1"]
[EndTime "14:08:24 PDT"]
[Termination "Game drawn by repetition"]

1. e4 {[%clk 0:03:00.9]} 1... e6 {[%clk 0:03:00.3]} 2. b3 {[%clk 0:02:59.7]}
2... d5 {[%clk 0:03:01.2]} 3. Bb2 {[%clk 0:03:00]} 3... Nf6 {[%clk 0:03:00.4]}
4. e5 {[%clk 0:03:00.2]} 4... Nfd7 {[%clk 0:02:58.9]} 5. Qg4 {[%clk 0:03:00.8]}
5... c5 {[%clk 0:02:56.7]} 6. Nf3 {[%clk 0:03:00.5]} 6... Nc6 {[%clk 0:02:57]}
7. Bb5 {[%clk 0:02:55.1]} 7... Qb6 {[%clk 0:02:53.7]} 8. c4 {[%clk 0:02:39.9]}
8... d4 {[%clk 0:02:39.1]} 9. O-O {[%clk 0:02:35.6]} 9... a6 {[%clk 0:02:30.7]}
10. Ba4 {[%clk 0:02:34]} 10... g6 {[%clk 0:02:25.1]} 11. d3 {[%clk 0:02:11.8]}
11... Bg7 {[%clk 0:02:24.9]} 12. Re1 {[%clk 0:02:00.9]} 12... O-O {[%clk
0:02:24.3]} 13. Bxc6 {[%clk 0:01:57.8]} 13... Qxc6 {[%clk 0:02:20.9]} 14. Nbd2
{[%clk 0:01:56.6]} 14... b5 {[%clk 0:02:14.8]} 15. b4 {[%clk 0:01:57.2]} 15...
bxc4 {[%clk 0:02:09.8]} 16. Nxc4 {[%clk 0:01:54.9]} 16... Bb7 {[%clk 0:02:02.5]}
17. Na5 {[%clk 0:01:39.3]} 17... Qd5 {[%clk 0:01:57.4]} 18. Rac1 {[%clk
0:01:20]} 18... cxb4 {[%clk 0:01:46.4]} 19. Nxb7 {[%clk 0:01:15.9]} 19... Qxb7
{[%clk 0:01:46.2]} 20. Bxd4 {[%clk 0:01:12.3]} 20... Rac8 {[%clk 0:01:39.9]} 21.
Qf4 {[%clk 0:01:09.8]} 21... Nb6 {[%clk 0:01:22.1]} 22. Bxb6 {[%clk 0:01:03.2]}
22... Qxb6 {[%clk 0:01:21.5]} 23. h4 {[%clk 0:01:00.3]} 23... h5 {[%clk
0:01:18.4]} 24. g4 {[%clk 0:00:54.5]} 24... hxg4 {[%clk 0:01:18.1]} 25. Qxg4
{[%clk 0:00:55.4]} 25... Qb7 {[%clk 0:01:14.8]} 26. h5 {[%clk 0:00:48.4]} 26...
gxh5 {[%clk 0:01:14.9]} 27. Qxh5 {[%clk 0:00:47.6]} 27... Rxc1 {[%clk
0:01:11.9]} 28. Rxc1 {[%clk 0:00:48.5]} 28... Rc8 {[%clk 0:01:12]} 29. Rxc8+
{[%clk 0:00:38.5]} 29... Qxc8 {[%clk 0:01:12.9]} 30. Ng5 {[%clk 0:00:38.1]}
30... Qc1+ {[%clk 0:01:07.2]} 31. Kg2 {[%clk 0:00:35.9]} 31... Qc6+ {[%clk
0:01:00.9]} 32. Kg3 {[%clk 0:00:30.6]} 32... Qd7 {[%clk 0:00:44.4]} 33. d4
{[%clk 0:00:30.7]} 33... a5 {[%clk 0:00:40.9]} 34. d5 {[%clk 0:00:23.1]} 34...
Bxe5+ {[%clk 0:00:28.6]} 35. f4 {[%clk 0:00:22.1]} 35... Bg7 {[%clk 0:00:11.7]}
36. dxe6 {[%clk 0:00:22.1]} 36... fxe6 {[%clk 0:00:11]} 37. Qg6 {[%clk
0:00:21.6]} 37... a4 {[%clk 0:00:04.3]} 38. Nxe6 {[%clk 0:00:20.8]} 38... b3
{[%clk 0:00:03.7]} 39. axb3 {[%clk 0:00:16.2]} 39... axb3 {[%clk 0:00:04.6]} 40.
f5 {[%clk 0:00:14.4]} 40... b2 {[%clk 0:00:04.3]} 41. f6 {[%clk 0:00:14.9]}
41... Qf7 {[%clk 0:00:01.1]} 42. Qe4 {[%clk 0:00:05.8]} 42... Qxf6 {[%clk
0:00:01.7]} 43. Nf4 {[%clk 0:00:05.6]} 43... Qc3+ {[%clk 0:00:01.7]} 44. Kg4
{[%clk 0:00:06]} 44... Qf6 {[%clk 0:00:02.4]} 45. Nh5 {[%clk 0:00:05.9]} 45...
Qc3 {[%clk 0:00:02.7]} 46. Qe8+ {[%clk 0:00:05.8]} 46... Kh7 {[%clk 0:00:02.7]}
47. Qe4+ {[%clk 0:00:06.2]} 47... Kg8 {[%clk 0:00:02.7]} 48. Nf4 {[%clk
0:00:04.7]} 48... Qd4 {[%clk 0:00:02.8]} 49. Qe6+ {[%clk 0:00:04.7]} 49... Kh8
{[%clk 0:00:02.6]} 50. Qe8+ {[%clk 0:00:04.3]} 50... Kh7 {[%clk 0:00:03.2]} 51.
Kf3 {[%clk 0:00:03.1]} 51... Qc3+ {[%clk 0:00:02.9]} 52. Kg4 {[%clk 0:00:02.9]}
52... b1=Q {[%clk 0:00:02.7]} 53. Qh5+ {[%clk 0:00:03.1]} 53... Kg8 {[%clk
0:00:02.7]} 54. Qe8+ {[%clk 0:00:03.4]} 54... Kh7 {[%clk 0:00:03.4]} 55. Qh5+
{[%clk 0:00:03.5]} 55... Kg8 {[%clk 0:00:03.8]} 56. Qe8+ {[%clk 0:00:03.9]}
56... Bf8 {[%clk 0:00:04.2]} 57. Qe6+ {[%clk 0:00:04.3]} 57... Kh7 {[%clk
0:00:03.6]} 58. Qf7+ {[%clk 0:00:01.2]} 58... Bg7 {[%clk 0:00:04]} 59. Qh5+
{[%clk 0:00:01.2]} 1/2-1/2

[Event "Late-Titled-Tuesday-Blitz-March-26-2024"]
[Site "Chess.com"]
[Date "2024.03.26"]
[Round "1"]
[White "Mikhail_Bryakin"]
[Black "PlotnikovPavel"]
[Result "1-0"]
[WhiteElo "2857"]
[BlackElo "2453"]
[TimeControl "180+1"]
[EndTime "14:08:26 PDT"]
[Termination "Mikhail_Bryakin won on time"]

1. e4 {[%clk 0:02:50.9]} 1... e6 {[%clk 0:02:59.9]} 2. Qe2 {[%clk 0:02:49.8]}
2... c5 {[%clk 0:02:57.8]} 3. Nf3 {[%clk 0:02:44.8]} 3... Nc6 {[%clk 0:02:57.7]}
4. c3 {[%clk 0:02:44]} 4... g6 {[%clk 0:02:57.3]} 5. g3 {[%clk 0:02:43.3]} 5...
Bg7 {[%clk 0:02:57.4]} 6. Bg2 {[%clk 0:02:44.1]} 6... Nge7 {[%clk 0:02:53.3]} 7.
O-O {[%clk 0:02:44.8]} 7... O-O {[%clk 0:02:53]} 8. Re1 {[%clk 0:02:44.8]} 8...
d5 {[%clk 0:02:49.5]} 9. e5 {[%clk 0:02:44.7]} 9... d4 {[%clk 0:02:47.3]} 10. c4
{[%clk 0:02:42.7]} 10... d3 {[%clk 0:02:32.3]} 11. Qe4 {[%clk 0:02:42.6]} 11...
Nb4 {[%clk 0:02:31.5]} 12. Na3 {[%clk 0:02:40.9]} 12... Bd7 {[%clk 0:02:24.9]}
13. b3 {[%clk 0:02:39.6]} 13... Bc6 {[%clk 0:02:24.2]} 14. Qf4 {[%clk
0:02:39.6]} 14... Nf5 {[%clk 0:02:18.7]} 15. Bb2 {[%clk 0:02:37.3]} 15... h5
{[%clk 0:02:04.9]} 16. h4 {[%clk 0:02:35.3]} 16... Bh6 {[%clk 0:01:51.7]} 17.
Ng5 {[%clk 0:02:35.7]} 17... Bxg2 {[%clk 0:01:50.3]} 18. Kxg2 {[%clk 0:02:36.6]}
18... a6 {[%clk 0:01:01.4]} 19. Rad1 {[%clk 0:02:21.5]} 19... Nxa2 {[%clk
0:00:57.9]} 20. Qe4 {[%clk 0:02:17.8]} 20... Bxg5 {[%clk 0:00:55]} 21. hxg5
{[%clk 0:02:17.6]} 21... Qxg5 {[%clk 0:00:52]} 22. Qxd3 {[%clk 0:02:09.8]} 22...
Rfd8 {[%clk 0:00:49.2]} 23. Qe2 {[%clk 0:02:09.5]} 23... h4 {[%clk 0:00:46.4]}
24. g4 {[%clk 0:02:06.6]} 24... h3+ {[%clk 0:00:38.6]} 25. Kh1 {[%clk
0:02:02.9]} 25... Nd4 {[%clk 0:00:36.6]} 26. Qe4 {[%clk 0:01:53.1]} 26... Nxb3
{[%clk 0:00:32.6]} 27. d3 {[%clk 0:01:53.1]} 27... Nb4 {[%clk 0:00:31]} 28. Re3
{[%clk 0:01:45.5]} 28... Kg7 {[%clk 0:00:25.4]} 29. Rg1 {[%clk 0:01:41.1]} 29...
Nd4 {[%clk 0:00:24.2]} 30. f4 {[%clk 0:01:32.6]} 30... Qh4 {[%clk 0:00:23.5]}
31. Reg3 {[%clk 0:01:25.2]} 31... Rh8 {[%clk 0:00:16.2]} 32. Bxd4 {[%clk
0:01:23.8]} 32... cxd4 {[%clk 0:00:15.9]} 33. Qxd4 {[%clk 0:01:24.2]} 33... Nc6
{[%clk 0:00:16.1]} 34. Qe4 {[%clk 0:01:23.2]} 34... Rad8 {[%clk 0:00:16.3]} 35.
Nc2 {[%clk 0:01:23.8]} 35... Rd7 {[%clk 0:00:14.4]} 36. d4 {[%clk 0:01:24.3]}
36... Rhd8 {[%clk 0:00:13.5]} 37. f5 {[%clk 0:01:01.3]} 37... exf5 {[%clk
0:00:12.9]} 38. Qf3 {[%clk 0:01:01]} 38... Nxd4 {[%clk 0:00:12.5]} 39. Nxd4
{[%clk 0:01:00.9]} 39... Rxd4 {[%clk 0:00:12.8]} 40. gxf5 {[%clk 0:01:01.8]}
40... Rf4 {[%clk 0:00:11.7]} 41. f6+ {[%clk 0:01:01.1]} 41... Kg8 {[%clk
0:00:09.3]} 42. Qe3 {[%clk 0:00:57.3]} 42... h2 {[%clk 0:00:08.9]} 43. Re1
{[%clk 0:00:55.1]} 43... Rg4 {[%clk 0:00:08.4]} 44. Rxg4 {[%clk 0:00:09.6]}
44... Qxg4 {[%clk 0:00:09.3]} 45. Kxh2 {[%clk 0:00:10.3]} 45... Qh4+ {[%clk
0:00:04.9]} 46. Kg2 {[%clk 0:00:10.3]} 46... Qg4+ {[%clk 0:00:05.4]} 47. Kf1
{[%clk 0:00:08.9]} 47... Qxc4+ {[%clk 0:00:04.7]} 48. Re2 {[%clk 0:00:08.4]}
48... Rd3 {[%clk 0:00:04.6]} 49. Qf2 {[%clk 0:00:01.7]} 49... Rd1+ {[%clk
0:00:04.3]} 50. Kg2 {[%clk 0:00:02]} 50... Qg4+ {[%clk 0:00:04.7]} 51. Kh2
{[%clk 0:00:02.7]} 51... Qh5+ {[%clk 0:00:04.6]} 52. Kg3 {[%clk 0:00:02.7]}
52... Qg5+ {[%clk 0:00:04.2]} 53. Kh2 {[%clk 0:00:03.2]} 53... Qh5+ {[%clk
0:00:04.4]} 54. Kg3 {[%clk 0:00:03.8]} 54... Qg5+ {[%clk 0:00:04]} 55. Kh2
{[%clk 0:00:04.2]} 55... Rd4 {[%clk 0:00:03.3]} 56. Re3 {[%clk 0:00:03.5]} 56...
Rh4+ {[%clk 0:00:03]} 57. Rh3 {[%clk 0:00:04.2]} 57... Qxe5+ {[%clk 0:00:03.4]}
58. Kg2 {[%clk 0:00:04.5]} 58... Rg4+ {[%clk 0:00:03.2]} 59. Kh1 {[%clk
0:00:03.6]} 59... Rf4 {[%clk 0:00:02.6]} 60. Qd2 {[%clk 0:00:03.1]} 60... Qe4+
{[%clk 0:00:02]} 61. Kh2 {[%clk 0:00:03.8]} 1-0

[Event "Late-Titled-Tuesday-Blitz-March-26-2024"]
[Site "Chess.com"]
[Date "2024.03.26"]
[Round "1"]
[White "BebeBonito2022"]
[Black "BabageldiAnnaberdiyev"]
[Result "0-1"]
[WhiteElo "2302"]
[BlackElo "2628"]
[TimeControl "180+1"]
[EndTime "14:08:27 PDT"]
[Termination "BabageldiAnnaberdiyev won on time"]

1. d4 {[%clk 0:03:00.9]} 1... Nf6 {[%clk 0:02:59.4]} 2. c4 {[%clk 0:03:00.7]}
2... g6 {[%clk 0:02:59.6]} 3. Nc3 {[%clk 0:03:00.6]} 3... Bg7 {[%clk 0:03:00.1]}
4. e4 {[%clk 0:03:00.9]} 4... d6 {[%clk 0:03:00.7]} 5. Nf3 {[%clk 0:03:01.6]}
5... O-O {[%clk 0:03:01.2]} 6. h3 {[%clk 0:03:02.3]} 6... e5 {[%clk 0:03:01.2]}
7. d5 {[%clk 0:03:02.8]} 7... a5 {[%clk 0:02:58.4]} 8. Bg5 {[%clk 0:03:02.7]}
8... h6 {[%clk 0:02:57.3]} 9. Be3 {[%clk 0:03:02.9]} 9... Na6 {[%clk 0:02:56.9]}
10. Be2 {[%clk 0:03:02.9]} 10... Nd7 {[%clk 0:02:55.9]} 11. g4 {[%clk
0:03:02.6]} 11... Ndc5 {[%clk 0:02:55.5]} 12. Nd2 {[%clk 0:02:54.2]} 12... Kh7
{[%clk 0:02:48.7]} 13. h4 {[%clk 0:02:53.3]} 13... Bd7 {[%clk 0:02:43]} 14. h5
{[%clk 0:02:52.9]} 14... g5 {[%clk 0:02:43.3]} 15. f3 {[%clk 0:02:51.2]} 15...
Bf6 {[%clk 0:02:36.3]} 16. O-O {[%clk 0:02:50]} 16... Be7 {[%clk 0:02:32]} 17.
b3 {[%clk 0:02:42.3]} 17... f6 {[%clk 0:02:30]} 18. a3 {[%clk 0:02:42]} 18...
Kg7 {[%clk 0:02:20.8]} 19. Qc2 {[%clk 0:02:39.2]} 19... b6 {[%clk 0:02:14.2]}
20. Qb2 {[%clk 0:02:38.8]} 20... Qc8 {[%clk 0:01:59.8]} 21. b4 {[%clk
0:02:36.4]} 21... Na4 {[%clk 0:01:59.6]} 22. Nxa4 {[%clk 0:02:35]} 22... Bxa4
{[%clk 0:02:00.5]} 23. Nb1 {[%clk 0:02:30.3]} 23... Bd7 {[%clk 0:01:59.6]} 24.
Nc3 {[%clk 0:02:18.1]} 24... Nb8 {[%clk 0:01:54.6]} 25. c5 {[%clk 0:02:10]}
25... bxc5 {[%clk 0:01:52]} 26. bxc5 {[%clk 0:02:10.4]} 26... dxc5 {[%clk
0:01:52.5]} 27. Rfc1 {[%clk 0:01:59.9]} 27... Na6 {[%clk 0:01:49.9]} 28. Qc2
{[%clk 0:01:41.6]} 28... Qe8 {[%clk 0:01:42.5]} 29. Nd1 {[%clk 0:01:28.3]} 29...
Bd6 {[%clk 0:01:41.2]} 30. Bxa6 {[%clk 0:01:23]} 30... Rxa6 {[%clk 0:01:42.1]}
31. Bxc5 {[%clk 0:01:23.1]} 31... Qe7 {[%clk 0:01:41.1]} 32. Ne3 {[%clk
0:01:21.7]} 32... Rb8 {[%clk 0:01:38.6]} 33. Bxd6 {[%clk 0:01:15.9]} 33... cxd6
{[%clk 0:01:38.9]} 34. Qc7 {[%clk 0:01:15.4]} 34... Re8 {[%clk 0:01:37.6]} 35.
Qb7 {[%clk 0:01:09.4]} 35... Raa8 {[%clk 0:01:29.6]} 36. Rc7 {[%clk 0:01:08.8]}
36... Rab8 {[%clk 0:01:03.4]} 37. Qa6 {[%clk 0:00:57.3]} 37... Ra8 {[%clk
0:00:50.3]} 38. Qc4 {[%clk 0:00:46.2]} 38... Qd8 {[%clk 0:00:49.5]} 39. Nf5+
{[%clk 0:00:39.6]} 39... Kg8 {[%clk 0:00:50]} 40. Nxd6 {[%clk 0:00:39.8]} 40...
Re7 {[%clk 0:00:43.1]} 41. Rc1 {[%clk 0:00:39.5]} 41... Bxg4 {[%clk 0:00:39.1]}
42. Rc8 {[%clk 0:00:30.8]} 42... Bxc8 {[%clk 0:00:37.4]} 43. Nxc8 {[%clk
0:00:31]} 43... Rf7 {[%clk 0:00:30.3]} 44. d6 {[%clk 0:00:26.5]} 44... Kg7
{[%clk 0:00:27.2]} 45. Qc6 {[%clk 0:00:20.6]} 45... Rb8 {[%clk 0:00:25.8]} 46.
Ne7 {[%clk 0:00:16.4]} 46... Rxe7 {[%clk 0:00:26]} 47. dxe7 {[%clk 0:00:16.4]}
47... Qxe7 {[%clk 0:00:26.9]} 48. Qc7 {[%clk 0:00:13.8]} 48... Rb7 {[%clk
0:00:27.2]} 49. Qxa5 {[%clk 0:00:12.8]} 49... Qf7 {[%clk 0:00:24.5]} 50. Qd5
{[%clk 0:00:10.4]} 50... Ra7 {[%clk 0:00:22.4]} 51. Qxf7+ {[%clk 0:00:09.9]}
51... Kxf7 {[%clk 0:00:23.3]} 52. Rc3 {[%clk 0:00:09.4]} 52... f5 {[%clk
0:00:23.9]} 53. Kf2 {[%clk 0:00:08.8]} 53... f4 {[%clk 0:00:22.2]} 54. Rb3
{[%clk 0:00:06]} 54... Ra4 {[%clk 0:00:19.6]} 55. Kg2 {[%clk 0:00:06.2]} 55...
g4 {[%clk 0:00:20.1]} 56. fxg4 {[%clk 0:00:04.3]} 56... Kf6 {[%clk 0:00:20.8]}
57. Kf3 {[%clk 0:00:04.4]} 57... Kg5 {[%clk 0:00:21.1]} 58. Rc3 {[%clk
0:00:04.7]} 58... Kh4 {[%clk 0:00:21]} 59. Rb3 {[%clk 0:00:05.1]} 59... Rd4
{[%clk 0:00:20.3]} 60. Rc3 {[%clk 0:00:05.2]} 60... Rd1 {[%clk 0:00:20.1]} 61.
a4 {[%clk 0:00:05]} 61... Ra1 {[%clk 0:00:20.4]} 62. Rc5 {[%clk 0:00:03.7]}
62... Ra3+ {[%clk 0:00:21]} 63. Kf2 {[%clk 0:00:03]} 63... Kxg4 {[%clk
0:00:20.5]} 64. a5 {[%clk 0:00:01.1]} 64... Ra2+ {[%clk 0:00:20.9]} 0-1